bitfinex-derivatives/quotes_ETHF0:USTF0_20240901
["timestamp","ask_amount","ask_price","bid_price","bid_amount"]
[1725168348654,4.35479289,2474.2,2473.7,3.2078]
[1725168349060,3.2078,2474.6,2474.2,0.2425]
[1725168349359,3.2078,2474.6,2474.0,3.2078]
[1725168349563,3.2078,2474.6,2474.3,0.2425]
[1725168350156,3.2078,2474.9,2474.5,0.24248]
[1725168350358,3.73,2475.0,2474.6,0.24247]
[1725168350755,3.21385425,2475.2,2474.8,0.24245]
[1725168351064,3.21385425,2475.2,2474.7,0.24246]
[1725168351065,0.00605425,2475.2,2474.7,0.24246]
[1725168351256,0.00605425,2475.2,2474.5,4.33097072]
[1725168351458,0.00605425,2475.2,2475.1,0.24242]
[1725168351662,0.00605425,2475.2,2475.1,4.28242]
[1725168351969,0.00605425,2475.2,2475.1,10.28242]
[1725168352269,3.2078,2475.8,2475.2,0.24241]
[1725168352467,3.2078,2475.8,2475.4,0.24239]
[1725168352667,3.2078,2475.8,2475.1,3.2078]
[1725168352974,3.2078,2475.8,2475.6,0.24237]
[1725168353164,3.73,2476.6,2476.1,0.24232]
[1725168353476,3.73605425,2476.6,2476.0,0.24233]
[1725168353660,3.73,2476.3,2475.9,4.13384217]
[1725168354066,8.72614418,2476.2,2475.9,4.13384217]
[1725168354265,3.45013,2476.1,2475.9,4.13384217]
[1725168354568,4.36162451,2476.0,2475.3,4.37624217]
[1725168354768,4.36162451,2476.0,2475.4,0.3602]
[1725168355870,4.60396451,2476.0,2475.4,0.3602]
[1725168356069,0.24235,2475.9,2475.4,0.3602]
[1725168356369,8.10868907,2475.8,2475.4,0.3602]
[1725168356665,3.45016,2475.8,2475.4,0.3602]
[1725168356855,3.2078,2475.8,2475.4,0.3602]
[1725168357061,3.45013,2476.1,2475.4,0.3602]
[1725168357255,3.2078,2476.1,2475.4,0.3602]
[1725168357470,4.59934768,2475.8,2475.4,0.3602]
[1725168357665,3.45013,2476.1,2475.4,0.60259]
[1725168358065,4.59934768,2476.0,2475.4,0.3602]
[1725168358361,3.2078,2476.1,2475.7,0.24235]
[1725168358664,3.73,2476.3,2475.6,3.2078]
[1725168358861,3.2078,2476.4,2475.7,0.3648]
[1725168359064,0.00605425,2476.6,2475.9,3.2078]
[1725168359273,0.00605425,2476.6,2475.9,3.45014]
[1725168359764,0.00605425,2476.6,2476.0,0.24233]
[1725168359965,0.24833425,2476.6,2476.1,0.3794]
[1725168360165,0.00605425,2476.6,2476.1,0.3794]
[1725168360359,0.00605425,2476.6,2476.2,0.24231]
[1725168361072,0.00605425,2476.6,2476.2,4.28071]
[1725168361272,0.00605425,2476.6,2476.5,0.24228]
[1725168361570,0.00605425,2476.6,2476.1,0.3794]
[1725168361965,0.00605425,2476.6,2476.2,0.24231]
[1725168362169,0.00605425,2476.6,2476.2,4.0384]
[1725168362476,0.00605425,2476.6,2476.4,0.24229]
[1725168362670,0.00605425,2476.6,2476.5,4.27988]
[1725168363371,3.73,2477.3,2476.5,10.0376]
[1725168363566,3.73,2477.3,2476.8,0.24225]
[1725168363759,3.73,2477.3,2476.9,0.3705]
[1725168363962,3.2078,2477.4,2476.9,0.3705]
[1725168363963,3.2078,2477.4,2476.9,0.61274]
[1725168364160,6.9378,2477.7,2477.0,0.24223]
[1725168364374,0.00605425,2477.6,2477.1,0.00605425]
[1725168364567,4.31519969,2477.6,2477.1,0.00605425]
[1725168365165,4.55737969,2477.6,2477.1,0.00605425]
[1725168365370,3.2078,2477.3,2477.1,0.00605425]
[1725168366073,7.2446,2477.3,2477.1,0.00605425]
[1725168366265,4.5383236,2477.2,2477.1,0.00605425]
[1725168366578,4.7805436,2477.2,2477.1,0.00605425]
[1725168366773,8.8173436,2477.2,2477.1,0.00605425]
[1725168367076,14.5751236,2477.2,2476.7,3.2078]
[1725168367268,3.73,2477.0,2476.7,3.2078]
[1725168367470,3.73,2477.0,2476.4,4.13384217]
[1725168367471,0.24227,2476.7,2476.4,4.13384217]
[1725168367675,0.24227,2476.7,2476.2,1.086]
[1725168367975,3.45007,2476.7,2476.2,1.086]
[1725168368168,3.73,2477.0,2476.2,0.72765425]
[1725168368169,0.24225,2476.9,2476.2,0.72765425]
[1725168368771,6.9378,2477.0,2476.2,0.72765425]
[1725168368772,3.2078,2476.7,2476.2,0.72765425]
[1725168369071,0.24226,2476.8,2476.2,0.72765425]
[1725168369272,3.45007,2476.7,2476.2,0.72765425]
[1725168369479,0.24229,2476.4,2476.2,0.37355425]
[1725168369681,0.24229,2476.5,2476.2,0.37355425]
[1725168369869,0.24228,2476.6,2476.2,0.37355425]
[1725168370174,3.2078,2476.7,2476.2,0.37355425]
[1725168370374,0.24229,2476.5,2476.2,0.37355425]
[1725168370566,0.24228,2476.6,2476.2,0.37355425]
[1725168370773,3.2078,2476.7,2476.2,0.37355425]
[1725168370971,4.54950524,2476.6,2476.2,0.37355425]
[1725168371475,4.79178524,2476.6,2476.2,0.37355425]
[1725168372173,0.2423,2476.3,2476.2,0.00605425]
[1725168372671,4.2807,2476.3,2476.2,0.00605425]
[1725168373075,11.69514636,2476.3,2476.2,4.25e-06]
[1725168374981,17.69514636,2476.3,2476.2,4.25e-06]
[1725168375981,11.45284636,2476.3,2476.2,4.25e-06]
[1725168376283,3.45008,2476.6,2476.2,4.25e-06]
[1725168376468,0.24229,2476.5,2476.2,4.25e-06]
[1725168376674,3.2078,2476.3,2476.2,4.25e-06]
[1725168377074,4.24565553,2476.5,2476.2,4.25e-06]
[1725168377075,0.24229,2476.5,2476.2,4.25e-06]
[1725168377273,0.2423,2476.4,2476.2,4.25e-06]
[1725168377474,4.52113028,2476.4,2476.2,4.25e-06]
[1725168377675,4.27883028,2476.4,2476.2,4.25e-06]
[1725168378276,11.2185,2476.3,2476.2,4.25e-06]
[1725168378476,11.2185,2476.3,2475.2,0.3889]
[1725168378477,0.24239,2475.5,2475.2,0.3889]
[1725168378680,3.2078,2475.5,2475.2,0.3889]
[1725168378874,0.24239,2475.5,2475.2,0.3889]
[1725168379286,0.24239,2475.4,2475.2,0.3889]
[1725168379475,0.24239,2475.4,2474.7,3.2078]
[1725168379476,4.61390466,2475.4,2474.7,3.2078]
[1725168379673,0.24242,2475.2,2474.7,3.2078]
[1725168379874,4.61390466,2475.4,2474.7,3.2078]
[1725168380479,0.00605425,2475.5,2474.8,5.20979244]
[1725168380684,0.00605425,2475.5,2474.9,0.3582]
[1725168381380,0.00605425,2475.5,2475.0,0.3669]
[1725168381884,3.21385425,2475.5,2475.0,0.3669]
[1725168382577,0.24239,2475.4,2475.0,0.3669]
[1725168382778,3.45624425,2475.5,2475.0,0.3669]
[1725168383478,3.21385425,2475.5,2475.0,0.3669]
[1725168384387,0.00605425,2475.5,2475.0,0.3669]
[1725168384583,0.00605425,2475.5,2475.0,0.60933]
[1725168385171,0.00605425,2475.5,2475.0,0.3669]
[1725168386584,0.00605425,2475.5,2475.0,0.60933]
[1725168386790,0.00605425,2475.5,2475.0,0.3669]
[1725168387090,0.00605425,2475.5,2475.0,0.60933]
[1725168387584,0.00605425,2475.5,2475.0,3.5747]
[1725168387782,0.00605425,2475.5,2475.1,5.29116813]
[1725168388086,4.24527497,2476.1,2475.5,0.24238]
[1725168388277,4.24527497,2476.1,2475.3,3.2078]
[1725168388278,3.2078,2476.1,2475.6,0.7072]
[1725168388481,0.24233,2476.0,2475.6,0.7072]
[1725168388686,0.24233,2476.0,2475.3,4.13384217]
[1725168388687,0.24234,2475.9,2475.3,4.13384217]
[1725168388985,8.93113011,2475.8,2475.1,0.00605425]
[1725168389193,0.00605425,2475.7,2475.1,0.00605425]
[1725168389487,3.2078,2475.5,2475.1,0.00605425]
[1725168389694,3.2078,2475.2,2475.1,0.00605425]
[1725168389985,3.45021,2475.2,2475.1,0.00605425]
[1725168390183,17.90445,2475.2,2475.1,0.00605425]
[1725168390389,18.94192497,2475.2,2475.1,0.00605425]
[1725168390589,0.24244,2475.0,2474.3,4.88604217]
[1725168390785,0.24244,2475.0,2474.3,5.12853217]
[1725168391288,0.24244,2475.0,2474.4,0.3709]
[1725168391480,1.27990497,2475.1,2474.4,0.61339]
[1725168391885,3.2078,2474.9,2474.4,0.3709]
[1725168392083,0.24246,2474.8,2474.4,0.3709]
[1725168392387,0.24247,2474.7,2474.4,0.3709]
[1725168392597,4.83639781,2474.8,2474.4,0.3709]
[1725168392893,4.59393781,2474.8,2474.4,0.3709]
[1725168393585,4.24527497,2475.2,2474.5,0.24247]
[1725168393786,4.24527497,2475.2,2474.4,3.82119]
[1725168394089,4.48769497,2475.2,2474.4,0.61339]
[1725168394294,4.48769497,2475.2,2474.4,3.5787]
[1725168394295,3.2078,2475.2,2474.4,3.5787]
[1725168394592,3.2078,2475.2,2474.6,0.24246]
[1725168394792,4.53683518,2475.1,2474.4,0.3709]
[1725168394985,1.03747497,2475.0,2474.4,0.3709]
[1725168395287,0.24247,2474.7,2474.4,0.3709]
[1725168395479,1.03747497,2474.8,2474.4,0.3709]
[1725168395480,0.24247,2474.6,2474.4,0.3709]
[1725168395680,3.2078,2474.5,2473.9,0.7428]
[1725168395890,0.00605425,2474.4,2473.9,1.1114]
[1725168396083,4.52410717,2474.4,2473.9,1.1114]
[1725168396389,0.00605425,2474.4,2473.9,1.1114]
[1725168396685,0.00605425,2474.4,2473.9,4.3192]
[1725168397593,0.00605425,2474.4,2473.9,1.1114]
[1725168399389,3.2078,2474.1,2473.9,0.7328]
[1725168399892,3.45032,2474.1,2473.9,0.7328]
[1725168400091,0.24253,2474.0,2473.9,0.7328]
[1725168400390,0.24254,2473.9,2473.4,4.13384217]
[1725168400590,8.35751052,2474.0,2473.2,0.3862]
[1725168400591,3.2078,2473.8,2473.2,0.3862]
[1725168400896,4.24552394,2473.8,2473.2,0.3862]
[1725168401086,0.24253,2474.0,2473.2,0.3862]
[1725168401389,3.45032,2474.1,2473.2,0.3862]
[1725168401695,3.2078,2473.8,2473.2,0.3862]
[1725168401884,0.24254,2473.9,2473.2,0.3862]
[1725168402081,3.45032,2474.1,2473.2,0.3862]
[1725168402394,0.24253,2474.0,2473.2,0.3862]
[1725168402595,0.24254,2473.9,2473.2,0.3862]
[1725168402788,0.24255,2473.8,2473.2,0.3862]
[1725168402989,3.45037,2473.7,2473.2,0.3862]
[1725168403182,6.0,2473.8,2473.1,3.2078]
[1725168403382,3.2078,2473.2,2472.7,4.13384217]
[1725168403592,8.6869196,2473.6,2472.7,3.2078]
[1725168403593,3.2078,2473.5,2472.7,3.2078]
[1725168403783,3.45038,2473.5,2472.6,0.3529]
[1725168404089,0.24259,2473.4,2472.6,0.3529]
[1725168404289,3.2078,2473.1,2472.6,0.3529]
[1725168404489,0.00605425,2473.1,2472.6,0.3529]
[1725168405792,0.00605425,2473.1,2472.4,3.2078]
[1725168405993,3.73,2472.9,2472.0,3.2078]
[1725168406197,3.2078,2472.8,2472.0,3.45052]
[1725168406404,7.76274827,2472.8,2472.0,3.45052]
[1725168406585,3.2078,2472.8,2472.1,0.3658]
[1725168406791,3.2078,2472.8,2472.0,3.2078]
[1725168406985,4.64352662,2472.7,2472.1,0.24271]
[1725168407190,3.2078,2472.8,2472.4,3.2078]
[1725168407392,3.2078,2472.8,2472.5,1.1096]
[1725168407592,4.28585753,2472.7,2472.5,0.7276]
[1725168407988,3.2078,2472.8,2472.5,0.7276]
[1725168408190,3.2078,2472.8,2472.5,4.7716]
[1725168408383,3.2078,2472.8,2472.5,0.7276]
[1725168408602,4.50214847,2472.7,2472.5,0.7276]
[1725168409400,3.2078,2472.8,2472.5,4.7716]
[1725168409593,4.55001514,2472.7,2472.5,0.3618]
[1725168409898,3.2078,2472.8,2472.5,0.3618]
[1725168410397,4.55001514,2472.7,2472.5,0.3618]
[1725168411285,3.2078,2472.8,2472.5,0.3618]
[1725168411497,4.39392775,2472.7,2472.1,3.5875]
[1725168412386,4.39392775,2472.7,2471.7,0.24275]
[1725168412387,3.2078,2472.4,2471.7,0.24275]
[1725168412589,3.73,2472.5,2472.0,0.3651]
[1725168412786,7.60172775,2472.7,2472.0,0.3651]
[1725168412787,4.53115174,2472.3,2472.0,0.3651]
[1725168412993,4.1935,2472.8,2472.1,0.3569]
[1725168412994,3.73,2472.8,2472.1,0.3569]
[1725168413198,3.73,2472.8,2471.4,4.1151]
[1725168413199,3.73,2472.2,2471.1,3.2078]
[1725168413395,3.2078,2471.9,2471.1,3.5729]
[1725168413592,0.58022,2472.1,2470.8,0.742]
[1725168413593,3.73,2471.4,2470.8,0.742]
[1725168413907,3.2078,2471.2,2470.8,0.3569]
[1725168414098,3.21386686,2471.2,2470.8,0.3569]
[1725168414294,3.21386686,2471.2,2470.2,3.2078]
[1725168414295,3.73,2470.9,2470.2,3.2078]
[1725168414499,3.2078,2470.3,2470.0,0.2]
[1725168414801,3.73,2470.5,2470.0,0.2]
[1725168415093,3.73,2470.9,2470.0,0.2]
[1725168415298,0.1253,2471.6,2470.0,0.2]
[1725168415299,4.3580187,2470.4,2470.3,3.97289]
[1725168415487,4.24726923,2470.8,2470.3,3.2078]
[1725168415889,3.2078,2471.4,2470.3,3.2078]
[1725168416293,4.24726923,2471.1,2470.4,5.27691413]
[1725168416496,4.24726923,2471.1,2470.3,3.2078]
[1725168416688,3.2078,2471.4,2470.6,3.2078]
[1725168416891,3.73,2472.1,2470.4,5.27691413]
[1725168416892,3.2078,2471.5,2470.4,5.27691413]
[1725168417090,4.65709146,2471.1,2470.2,3.2078]
[1725168417398,3.2078,2471.6,2470.2,3.2078]
[1725168417614,4.61103932,2471.1,2470.2,3.2078]
[1725168417904,0.37,2471.4,2470.5,3.2078]
[1725168418097,3.2078,2471.6,2470.5,3.2078]
[1725168418301,3.5778,2471.6,2470.5,3.2078]
[1725168418692,3.5778,2471.6,2470.6,0.3535]
[1725168419000,4.37369043,2471.1,2470.6,0.3535]
[1725168419395,3.5778,2471.6,2470.6,0.3535]
[1725168419596,3.82057,2471.6,2470.6,0.3535]
[1725168420101,4.25321399,2471.1,2470.6,0.3535]
[1725168420294,3.5778,2471.6,2470.6,0.3535]
[1725168420492,0.3637,2472.0,2470.6,0.3535]
[1725168420493,3.2078,2471.9,2470.8,3.2078]
[1725168420693,3.2078,2471.9,2471.0,0.24282]
[1725168420895,3.2078,2471.9,2471.1,7.49701]
[1725168421199,3.2078,2471.9,2470.8,6.0]
[1725168421200,3.2078,2471.5,2470.8,3.2078]
[1725168421414,0.3711,2471.4,2470.8,3.2078]
[1725168421799,3.5715,2472.0,2470.9,4.29003]
[1725168422002,3.5715,2472.0,2470.9,0.3742]
[1725168422301,0.3796,2471.9,2471.0,4.0472]
[1725168422494,3.2078,2471.7,2471.0,4.0472]
[1725168422698,3.2078,2471.7,2471.1,4.0464]
[1725168422897,3.2078,2471.7,2471.0,4.0472]
[1725168423299,3.2078,2471.7,2471.1,4.0464]
[1725168423502,0.3796,2471.9,2471.0,4.0472]
[1725168423694,3.2078,2472.0,2471.1,3.82811]
[1725168423898,3.2078,2472.0,2471.1,7.87451]
[1725168424102,3.2078,2472.0,2471.1,15.75043758]
[1725168424302,3.2078,2472.0,2471.1,4.4239]
[1725168424500,0.62234,2471.9,2471.1,4.4239]
[1725168424702,0.62234,2471.9,2471.1,0.3775]
[1725168424905,3.2078,2471.5,2470.8,3.2078]
[1725168425102,3.2078,2470.9,2470.5,0.3895]
[1725168425305,3.2078,2470.6,2470.2,0.3694]
[1725168425506,3.2078,2470.6,2470.0,3.4078]
[1725168425507,3.2078,2470.7,2470.0,0.2]
[1725168425806,3.2078,2470.7,2470.0,3.4078]
[1725168426205,0.24287,2470.6,2470.0,0.2]
[1725168426397,3.2078,2470.3,2470.0,0.2]
[1725168426597,9.2078,2470.3,2470.0,0.2]
[1725168426912,0.24296,2469.7,2468.9,0.7457]
[1725168427115,3.2078,2469.4,2468.8,3.2078]
[1725168427304,3.2078,2469.4,2468.0,3.2078]
[1725168427305,3.2078,2469.1,2468.0,3.2078]
[1725168427504,3.89,2469.3,2467.5,3.2078]
[1725168427505,3.45089,2468.4,2467.5,3.2078]
[1725168427704,3.2078,2467.6,2466.8,3.2078]
[1725168427908,3.2078,2467.9,2467.2,0.02082123]
[1725168428206,0.0060794,2468.2,2467.2,0.02082123]
[1725168428207,4.68937937,2467.5,2467.2,0.02082123]
[1725168428409,4.68937937,2467.8,2467.2,0.02082123]
[1725168428608,3.2078,2467.9,2467.2,0.02082123]
[1725168428929,4.55147184,2467.8,2467.5,0.02082123]
[1725168429096,4.02233109,2467.8,2467.5,0.02082123]
[1725168429298,4.0528,2467.7,2467.5,0.02082123]
[1725168429507,4.0528,2467.6,2467.5,0.02082123]
[1725168429708,0.3496073,2467.6,2467.5,0.02082123]
[1725168430008,10.0528,2467.6,2467.5,0.02082123]
[1725168430313,14.75098952,2467.6,2467.5,0.02082123]
[1725168430502,8.75098952,2467.6,2467.5,0.02082123]
[1725168430706,14.75098952,2467.6,2467.5,0.02082123]
[1725168431210,8.75098952,2467.6,2467.5,0.02082123]
[1725168431712,4.69818952,2467.6,2467.5,0.02082123]
[1725168431908,0.0060794,2467.9,2467.5,0.02082123]
[1725168432109,4.052,2467.8,2467.5,0.02082123]
[1725168432310,11.75869512,2467.8,2467.5,0.02082123]
[1725168432510,4.0528,2467.7,2467.5,0.02082123]
[1725168432909,4.0528,2467.7,2467.0,3.2078]
[1725168432910,8.43751991,2467.6,2467.0,3.2078]
[1725168433107,4.38471991,2467.6,2467.0,3.2078]
[1725168433613,4.38471991,2467.7,2467.0,3.2078]
[1725168433807,3.2078,2467.8,2467.3,3.2078]
[1725168434008,4.48408401,2467.7,2467.3,3.2078]
[1725168434715,8.53688401,2467.7,2466.7,3.2078]
[1725168434915,4.48408401,2467.7,2467.0,3.2078]
[1725168435316,4.48408401,2467.7,2466.0,4.49898206]
[1725168435317,4.48408401,2467.7,2466.6,3.2078]
[1725168435620,4.48408401,2467.7,2466.9,3.2078]
[1725168436115,4.48408401,2467.7,2467.3,0.24319]
[1725168436440,4.48408401,2467.7,2467.4,0.24318]
[1725168436917,0.0060794,2467.9,2467.8,0.24314]
[1725168437127,0.0060794,2467.9,2467.8,3.45094]
[1725168437423,3.2078,2469.0,2467.8,13.2598]
[1725168437620,3.2078,2469.0,2468.3,3.45088]
[1725168437825,7.83736624,2469.0,2468.3,3.45089]
[1725168438015,3.2078,2469.3,2468.6,3.2078]
[1725168438324,3.2078,2469.6,2468.8,3.2078]
[1725168438517,0.0060794,2469.2,2468.8,3.2078]
[1725168438816,0.0060794,2469.2,2469.1,3.2078]
[1725168439014,0.0060794,2469.2,2469.1,3.45081]
[1725168439215,3.2078,2470.7,2469.6,0.24296]
[1725168439418,3.2078,2470.7,2469.7,3.2078]
[1725168439621,4.57587734,2470.4,2469.7,3.2078]
[1725168439807,4.57587734,2470.6,2470.0,3.2078]
[1725168440015,3.2078,2470.7,2469.7,3.2078]
[1725168440220,0.0060794,2470.5,2470.1,3.2138794]
[1725168440424,0.0060794,2470.5,2470.1,0.0060794]
[1725168441622,0.0060794,2470.5,2470.2,3.2078]
[1725168441926,0.0060794,2470.5,2470.1,0.0060794]
[1725168442423,0.0060794,2470.5,2470.3,3.2078]
[1725168442814,0.0060794,2470.5,2470.4,4.048]
[1725168443217,0.0060794,2470.5,2470.4,10.048]
[1725168443519,0.0060794,2470.5,2470.4,4.048]
[1725168443720,4.0540794,2470.5,2470.1,0.0060794]
[1725168443920,4.048,2470.4,2470.1,0.0060794]
[1725168444126,3.2078,2470.3,2469.5,3.2078]
[1725168444327,4.36061098,2470.3,2469.5,3.2078]
[1725168445019,4.36061098,2470.3,2469.7,0.0060794]
[1725168445020,0.24291,2470.1,2469.7,0.0060794]
[1725168445320,4.43774499,2470.0,2469.7,0.0060794]
[1725168445518,7.64554499,2470.0,2469.7,0.0060794]
[1725168445821,4.0488,2469.9,2469.7,0.0060794]
[1725168446023,4.43774499,2469.9,2469.7,0.0060794]
[1725168446225,4.0488,2469.8,2469.7,0.0060794]
[1725168446720,4.38538269,2469.8,2469.7,0.0060794]
[1725168446916,3.2078,2470.3,2469.7,0.0060794]
[1725168447110,3.4507,2470.3,2469.7,0.0060794]
[1725168447315,4.62828269,2470.2,2469.7,0.0060794]
[1725168447820,4.38538269,2470.2,2469.7,3.2138794]
[1725168448118,0.3893,2470.7,2469.9,3.2078]
[1725168448320,0.63216,2470.7,2470.0,3.2078]
[1725168448522,4.48773562,2470.4,2470.3,3.2078]
[1725168448715,3.2078,2471.2,2470.4,4.048]
[1725168448917,3.2078,2471.2,2470.3,3.2078]
[1725168449124,3.2078,2471.2,2470.3,7.2558]
[1725168449519,3.45061,2471.2,2470.3,7.2558]
[1725168450120,3.2078,2471.2,2470.4,4.29088]
[1725168450624,3.2078,2471.7,2470.7,0.24285]
[1725168450826,3.2078,2471.7,2470.9,3.2078]
[1725168451024,0.3528,2471.9,2470.9,9.45063]
[1725168451220,163.6884094,2471.0,2470.9,13.49783]
[1725168451618,163.6884094,2471.0,2470.9,18.65083678]
[1725168451619,161.7318094,2471.0,2470.9,18.65083678]
[1725168451916,153.39008373,2471.0,2470.9,18.9294975]
[1725168452314,141.56838373,2471.0,2470.9,27.6329649]
[1725168452718,138.32638751,2471.0,2470.9,27.6329649]
[1725168452923,138.32638751,2471.0,2470.9,27.83221891]
[1725168453316,138.32638751,2471.0,2470.9,27.22512891]
[1725168453920,138.32638751,2471.0,2470.9,8.80289079]
[1725168454424,138.32638751,2471.0,2470.9,8.36080678]
[1725168455725,138.32638751,2471.0,2470.6,3.2078]
[1725168455926,138.32638751,2471.0,2470.9,3.2078]
[1725168458333,152.39996628,2471.0,2470.8,3.2078]
[1725168458519,8.07357877,2470.9,2470.8,3.2078]
[1725168459427,138.32638751,2471.0,2470.9,0.24283]
[1725168459730,138.32638751,2471.0,2470.8,3.45064]
[1725168460520,138.32638751,2471.0,2470.8,3.2078]
[1725168460719,138.32638751,2471.0,2470.9,5.17848318]
[1725168460921,138.32638751,2471.0,2470.9,0.24283]
[1725168461225,138.32638751,2471.0,2470.8,3.2078]
[1725168461528,138.32638751,2471.0,2470.9,0.24283]
[1725168461929,138.32638751,2471.0,2470.9,5.6183962]
[1725168462127,138.32638751,2471.0,2470.9,15.6655962]
[1725168462426,138.32638751,2471.0,2470.9,9.6655962]
[1725168462616,138.32638751,2471.0,2470.9,15.6655962]
[1725168462817,138.32638751,2471.0,2470.9,14.4935962]
[1725168463021,4.86577877,2470.3,2469.2,0.243]
[1725168463224,4.86577877,2469.8,2469.2,3.2078]
[1725168463427,10.67186257,2469.8,2469.2,3.2078]
[1725168463629,10.67186257,2469.8,2469.3,3.2078]
[1725168464821,10.67186257,2469.8,2468.9,3.2078]
[1725168465025,0.24295,2469.7,2468.9,3.2078]
[1725168465228,0.24295,2469.7,2468.5,0.7937]
[1725168465229,4.86577877,2469.2,2468.6,3.2078]
[1725168465625,10.67186257,2469.2,2468.6,8.49997251]
[1725168465929,10.67186257,2469.2,2468.7,0.0060794]
[1725168466239,0.0060794,2469.1,2468.7,0.0060794]
[1725168467225,4.86577877,2469.2,2468.9,3.2078]
[1725168467625,10.67186257,2469.2,2468.9,3.2078]
[1725168468330,4.86577877,2469.2,2468.9,3.2078]
[1725168468533,4.86577877,2469.3,2469.1,0.243]
[1725168468727,2.9664794,2470.1,2469.2,3.2078]
[1725168468923,4.86577877,2469.4,2469.2,3.2078]
[1725168469224,4.86577877,2469.7,2469.2,3.2078]
[1725168469441,4.86577877,2469.7,2469.3,5.15198275]
[1725168469628,4.86577877,2469.8,2469.6,0.24296]
[1725168469824,4.86577877,2470.0,2469.8,0.24293]
[1725168470132,4.86577877,2470.0,2469.9,3.2078]
[1725168470325,4.22792143,2470.5,2469.9,3.2078]
[1725168470533,4.86577877,2470.2,2469.9,3.2078]
[1725168470731,5.8060838,2470.5,2470.0,0.24292]
[1725168470732,4.87185817,2470.3,2470.0,0.24292]
[1725168470932,0.0060794,2470.3,2470.2,3.4507]
[1725168471324,4.86577877,2470.6,2470.4,0.24288]
[1725168471528,4.86577877,2470.6,2470.5,3.2078]
[1725168471936,137.33246691,2471.0,2470.5,3.45067]
[1725168472127,4.86577877,2470.8,2470.7,0.24285]
[1725168472328,148.01040888,2471.0,2470.5,3.2078]
[1725168472533,148.01040888,2471.0,2470.9,0.24283]
[1725168472534,137.33854631,2471.0,2470.9,0.24283]
[1725168472735,137.33854631,2471.0,2470.8,3.45064]
[1725168472925,137.33854631,2471.0,2470.9,3.2078]
[1725168473129,137.33854631,2471.0,2470.9,3.45063]
[1725168473328,137.33854631,2471.0,2470.9,3.2078]
[1725168473933,148.01040888,2471.0,2470.5,3.2078]
[1725168474139,4.86577877,2470.6,2470.5,3.2078]
[1725168474531,4.86577877,2470.6,2470.2,3.2078]
[1725168474740,10.67186257,2470.6,2470.2,3.2078]
[1725168475037,10.67186257,2470.6,2470.2,3.4507]
[1725168475427,10.67186257,2470.6,2470.3,0.24289]
[1725168475829,10.67186257,2470.6,2470.5,3.2078]
[1725168476034,4.86577877,2470.6,2470.5,3.2078]
[1725168476242,137.33854631,2471.0,2470.5,3.2078]
[1725168476431,4.86577877,2470.7,2470.5,3.2078]
[1725168476633,4.86577877,2470.8,2470.5,3.2078]
[1725168476833,4.86577877,2470.9,2470.5,3.2078]
[1725168477138,4.86577877,2470.9,2470.8,3.2078]
[1725168477340,10.67186257,2470.9,2470.8,3.2078]
[1725168477541,4.86577877,2470.9,2470.8,3.2078]
[1725168478035,137.33854631,2471.0,2470.8,3.2078]
[1725168478240,148.01040888,2471.0,2470.8,3.2078]
[1725168478445,142.20432508,2471.0,2470.8,3.45064]
[1725168478747,137.33854631,2471.0,2470.9,0.24283]
[1725168479046,137.33854631,2471.0,2470.9,9.48109766]
[1725168479240,137.33854631,2471.0,2470.9,15.48109766]
[1725168479432,137.33854631,2471.0,2470.9,9.48109766]
[1725168479633,137.33854631,2471.0,2470.8,3.2078]
[1725168479838,142.20432508,2471.0,2470.8,3.2078]
[1725168480244,137.33854631,2471.0,2470.8,3.2078]
[1725168480442,137.33854631,2471.0,2470.9,4.29003]
[1725168480641,137.33854631,2471.0,2470.9,9.62246737]
[1725168480942,137.33854631,2471.0,2470.9,15.62246737]
[1725168481338,137.33854631,2471.0,2470.9,9.62246737]
[1725168481642,137.33854631,2471.0,2470.9,15.62246737]
[1725168482548,136.75224631,2471.0,2470.9,15.62246737]
[1725168482742,136.16584631,2471.0,2470.9,15.62246737]
[1725168483045,136.16584631,2471.0,2470.9,24.27866898]
[1725168483046,132.40514631,2471.0,2470.9,24.27866898]
[1725168483345,132.02954631,2471.0,2470.9,25.28030177]
[1725168483839,131.94944631,2471.0,2470.9,25.28030177]
[1725168484245,131.94944631,2471.0,2470.9,25.48140524]
[1725168484649,128.33890631,2471.0,2470.9,25.68390177]
[1725168484837,119.14040631,2471.0,2470.9,29.90359177]
[1725168485044,103.94845631,2471.0,2470.9,29.90359177]
[1725168485241,101.21852631,2471.0,2470.9,29.49458187]
[1725168485438,101.21852631,2471.0,2470.9,29.09098187]
[1725168485839,99.12589631,2471.0,2470.9,30.14090656]
[1725168486049,98.07343631,2471.0,2470.9,29.09098187]
[1725168486242,95.52861631,2471.0,2470.9,29.09098187]
[1725168486553,94.11266274,2471.0,2470.9,29.49458187]
[1725168486734,89.25247614,2471.0,2470.9,29.56891693]
[1725168486933,85.77661614,2471.0,2470.9,19.93072683]
[1725168487245,70.66612614,2471.0,2470.9,31.2273076]
[1725168487547,70.66612614,2471.0,2470.9,30.17738291]
[1725168487548,68.23924199,2471.0,2470.9,30.17738291]
[1725168487749,64.65092199,2471.0,2470.9,30.17738291]
[1725168488048,49.71730199,2471.0,2470.9,42.20105257]
[1725168488239,47.79258199,2471.0,2470.9,42.20105257]
[1725168488433,47.18848199,2471.0,2470.9,41.15191228]
[1725168488632,40.57154656,2471.0,2470.9,41.35786378]
[1725168488837,34.06000656,2471.0,2470.9,43.25484669]
[1725168489148,30.71949656,2471.0,2470.9,43.45569898]
[1725168489345,9.63666765,2471.0,2470.9,43.74523223]
[1725168489544,3.2078,2472.7,2472.2,0.2427]
[1725168489844,0.3888,2473.2,2472.3,5.20142341]
[1725168489845,3.2078,2472.8,2472.3,5.20142341]
[1725168490058,3.2078,2472.7,2472.3,5.20142341]
[1725168490343,21.42657877,2472.9,2472.4,0.24268]
[1725168490546,21.42657877,2472.9,2472.4,0.24874686]
[1725168490748,21.42657877,2472.9,2472.5,5.61069008]
[1725168490939,0.3888,2473.2,2472.5,5.36801008]
[1725168491139,21.05457877,2473.1,2472.5,14.06870286]
[1725168491339,21.44337877,2473.2,2472.8,0.24264]
[1725168491745,0.3888,2473.2,2472.9,5.30097965]